fUSD/lending_fUSD_20240524
["ID","MTS","AMOUNT","RATE_DAILY","PERIOD"]
[327839832,1716540633015,-300.0,0.00012864,2]
[327839834,1716540633024,-1500.0,0.00012869,2]
[327839836,1716540633034,-2280.32767,0.0001287,2]
[327839838,1716540633043,-150.0,0.00012874,2]
[327839840,1716540633053,-300.0,0.00012877,2]
[327839842,1716540633062,-161.51841453,0.00012889,2]
[327839845,1716540633071,-161.51841452,0.00012889,2]
[327839848,1716540633080,-161.51841452,0.00012889,2]
[327839850,1716540633089,-2500.0,0.00012891,2]
[327839852,1716540633098,-150.0,0.00012891,2]
[327839854,1716540633108,-777.36,0.00012893,2]
[327839856,1716540633117,-203.535012,0.00012896,2]
[327839858,1716540633126,-500.0,0.00012896,2]
[327839860,1716540633135,-1500.0,0.00012898,2]
[327839862,1716540633144,-796.1588,0.000129,2]
[327839863,1716540633153,-168.8254,0.000129,2]
[327839864,1716540633163,-656.8967,0.000129,2]
[327839865,1716540633172,-1000.0,0.000129,2]
[327839866,1716540633182,-7500.0,0.000129,2]
[327839867,1716540633191,-303.73627002,0.000129,2]
[327839868,1716540633201,-667.77869089,0.000129,2]
[327839869,1716540633210,-161.51841452,0.000129,2]
[327839870,1716540633220,-300.0,0.0001292,2]
[327839871,1716540633229,-300.0,0.0001292,2]
[327839872,1716540633239,-150.0,0.0001292,2]
[327839873,1716540633248,-169.51689573,0.00012937,2]
[327839874,1716540633258,-116661.05096705,0.00012955,2]
[327839875,1716540633268,-300.0,0.00012968,2]
[327839876,1716540633278,-1500.0,0.00012984,2]
[327839877,1716540633288,-5381.1797779,0.00012989,2]
[327839879,1716540633300,-540.7572958,0.00012989,2]
[327839880,1716540633309,-300.8406417,0.00012989,2]
[327839882,1716540633318,-380.9832458,0.00012989,2]
[327839884,1716540633328,-5764.0104711,0.00012991,2]
[327839886,1716540633337,-6146.8411644,0.00012991,2]
[327839888,1716540633347,-6529.6718577,0.00012991,2]
[327839890,1716540633357,-6912.5025509,0.00012991,2]
[327839892,1716540633367,-7295.3332442,0.00012991,2]
[327839894,1716540633376,-579.2281329,0.00012991,2]
[327839896,1716540633385,-617.69897,0.00012991,2]
[327839898,1716540633394,-656.169807,0.00012991,2]
[327839900,1716540633403,-694.6406441,0.00012991,2]
[327839902,1716540633414,-733.1114812,0.00012991,2]
[327839904,1716540633424,-320.4628133,0.00012991,2]
[327839905,1716540633433,-340.084985,0.00012991,2]
[327839906,1716540633443,-359.7071566,0.00012991,2]
[327839907,1716540633453,-379.3293283,0.00012991,2]
[327839908,1716540633462,-398.9514999,0.00012991,2]
[327839909,1716540633471,-15410.04220263,0.00012997,2]
[327839910,1716540633481,-3717.13350806,0.00012998,2]
[327839911,1716540633491,-157.22038164,0.00012998,2]
[327839912,1716540633500,-240.7284917,0.00012998,2]
[327839913,1716540633510,-537.53035745,0.00012998,2]
[327839914,1716540633519,-239.68093296,0.00012998,2]
[327839915,1716540633529,-237.20973575,0.00012998,2]
[327839916,1716540633539,-3289.14283308,0.00012998,2]
[327839917,1716540633550,-613.46729982,0.00012998,2]
[327839918,1716540633559,-3118.8,0.00012998,2]
[327839919,1716540633568,-1125.12131999,0.00012998,2]
[327839920,1716540633577,-2361.97518554,0.00012998,2]
[327839921,1716540633587,-7307.46141809,0.00012998,2]
[327839922,1716540633596,-155.0,0.00012998,2]
[327839923,1716540633605,-834.93638884,0.00012998,2]
[327839924,1716540633615,-8612.02929872,0.00012998,2]
[327839925,1716540633624,-181.70620615,0.00012998,2]
[327839926,1716540633634,-155.24290461,0.00012998,2]
[327839927,1716540633642,-200.78650338,0.00012998,2]
[327839928,1716540633651,-378.57777068,0.00012998,2]
[327839929,1716540633661,-4865.31748179,0.00012998,2]
[327839930,1716540633670,-414.28119384,0.00012998,2]
[327839931,1716540633679,-164.99574182,0.00012998,2]
[327839932,1716540633688,-373.73181939,0.00012998,2]
[327839933,1716540633698,-192.53745669,0.00012998,2]
[327839934,1716540633707,-155.67431801,0.00012998,2]
[327839935,1716540633716,-306.00607341,0.00012998,2]
[327839936,1716540633726,-3857.71561281,0.00012998,2]
[327839937,1716540633734,-1244.99730591,0.00012998,2]
[327839938,1716540633744,-2582.96750816,0.00012998,2]
[327839939,1716540633752,-207.5848005,0.00012998,2]
[327839940,1716540633762,-159.12927082,0.00012998,2]
[327839941,1716540633771,-1000.0,0.00012999,2]
[327839942,1716540633780,-150.01,0.00012999,2]
[327839943,1716540633789,-2936.50650373,0.00012999,2]
[327839944,1716540633800,-86803.07691156,0.00013,2]
[327839945,1716540633813,-375255.83167244,0.00013,2]
[327839946,1716540633822,-3328.60403053,0.00013,2]
[327839947,1716540633836,-14441.02366403,0.00013,2]
[327839948,1716540633848,-250003.58494861,0.00013,2]
[327839949,1716540633864,-825.99999941,0.00013,2]
[327839950,1716540633876,-7008.09764947,0.00013,2]
[327839953,1716540637676,-5133.2700163,0.00013,2]
[327839954,1716540637738,-506.9411185,0.00013,2]
[327839955,1716540637749,-4033.08986724,0.00013,2]
[327839956,1716540637803,-1001.41407019,0.00013,2]
[327839957,1716540637814,-670.532,0.00013,2]
[327839958,1716540637864,-1333.30479155,0.00013,2]
[327839959,1716540637905,-381.33465368,0.00013,2]
[327839960,1716540637926,-14129.56300079,0.00013,2]
[327839961,1716540637937,-1032.99990606,0.00013,2]
[327839963,1716540640796,-7500.0,0.000129,2]
[327839964,1716540640808,-1543.98542478,0.00013,2]
[327839965,1716540640819,-1325.0325368,0.00013,2]
[327839966,1716540640831,-359.48000001,0.00013,2]
[327839967,1716540640980,-4787.60845591,0.00013,2]
[327839968,1716540640993,-9187.49999993,0.00013,2]
[327839969,1716540641004,-269.54288353,0.00013,2]
[327839970,1716540641015,-1440.12913171,0.00013,2]
[327839971,1716540641026,-715.38622221,0.00013,2]
[327839980,1716540643102,-11524.24592764,0.00013,2]
[327839981,1716540643114,-2993.37998776,0.00013,2]
[327839982,1716540643126,-2121.71777212,0.00013,2]
[327839983,1716540643137,-1092.94886395,0.00013,2]
[327839984,1716540643148,-19927.91478871,0.00013,2]
[327839985,1716540643159,-18665.73616508,0.00013,2]
[327839987,1716540646502,-836.6898477,0.0001299,2]
[327839988,1716540646512,-3386.25029958,0.00013,2]
[327839989,1716540646523,-6724.38854716,0.00013,2]
[327839990,1716540646534,-5054.81663788,0.00013,2]
[327839991,1716540646687,-7305.49819991,0.00013,2]
[327839992,1716540646698,-1246.58900404,0.00013,2]
[327839999,1716540780921,2311.28277522,9.75e-05,2]
[327840000,1716540910937,1998.28832118,7.313e-05,2]
[327840001,1716541438619,14616.95530326,7.313e-05,2]
[327840011,1716541831229,156.23,9.914e-05,2]
[327840022,1716541832122,-150.0,0.00010396,2]
[327840023,1716541832132,-150.0,0.00010422,2]
[327840024,1716541832141,-105.7430466,0.00011125,2]
[327840025,1716541832153,-275.02123254,0.00011125,2]
[327840026,1716541832164,-648.56657786,0.00011125,2]
[327840027,1716541832176,-861.87782854,0.00011125,2]
[327840028,1716541832230,-261.62382088,0.00011125,2]
[327840029,1716541832242,-629.99914214,0.00011125,2]
[327840030,1716541832255,-1759.08148796,0.00011125,2]
[327840031,1716541832264,-707.7,0.00011126,2]
[327840032,1716541832275,-155.69003604,0.00011698,2]
[327840033,1716541832284,-250.0,0.00012422,2]
[327840034,1716541832296,-1000.0,0.00012618,2]
[327840035,1716541832306,-150.0,0.00012762,2]
[327840036,1716541832316,-500.0,0.00012896,2]
[327840037,1716541832325,-150.0,0.00012899,2]
[327840038,1716541832334,-10000.0,0.000129,2]
[327840039,1716541832343,-11442.25705494,0.000129,2]
[327840040,1716541832354,-589.2861,0.000129,2]
[327840041,1716541832364,-261.19852924,0.000129,2]
[327840042,1716541832373,-1000.0,0.00012985,2]
[327840043,1716541832382,-2169.69,0.00012985,2]
[327840044,1716541832391,-23900.0,0.00012986,2]
[327840045,1716541832401,-1000.01492013,0.0001299,2]
[327840046,1716541832410,-6863.98954891,0.00012998,2]
[327840047,1716541832420,-150.99,0.00012999,2]
[327840048,1716541832429,-2936.50650372,0.00012999,2]
[327840049,1716541832439,-75422.56793244,0.00013,2]
[327840050,1716541832450,-14614.16245905,0.00013,2]
[327840051,1716541832466,-1845.29162567,0.00013,2]
[327840052,1716541832478,-8689.11380081,0.00013,2]
[327840053,1716541832490,-364.7,0.00013,2]
[327840054,1716541832501,-3411.40281369,0.00013,2]
[327840061,1716541837997,-566.34980186,0.00013,2]
[327840062,1716541838105,-2106.60115447,0.00013,2]
[327840155,1716541841459,-500.0,0.00013,2]
[327840156,1716541841603,-861.2,0.00013,2]
[327840157,1716541841679,-23619.00641932,0.00013,2]
[327840158,1716541841692,-10529.52945328,0.00013,2]
[327840159,1716541841705,-1260.33130643,0.00013,2]
[327840160,1716541841718,-2015.43803236,0.00013,2]
[327840161,1716541841767,-33662.64242756,0.00013,2]
[327840164,1716541841778,-3679.00000009,0.00013,2]
[327840166,1716541841789,-3633.25025628,0.00013,2]
[327840168,1716541841799,-3017.69960856,0.00013,2]
[327840170,1716541841812,-273.31765407,0.00013,2]
[327840172,1716541841824,-1311.55000001,0.00013,2]
[327840175,1716541841835,-5167.65313138,0.00013,2]
[327840191,1716541842957,-33622.26094909,0.00013,2]
[327840192,1716541843207,-3077.93117211,0.00013,2]
[327840193,1716541843222,-388.10793558,0.00013,2]
[327840194,1716541843682,-592.90958529,0.00013,2]
[327840217,1716541846505,-747.40697802,0.00013,2]
[327840218,1716541846517,-505.14,0.00013,2]
[327840219,1716541846529,-292.064,0.00013,2]
[327840220,1716541846540,-1881.56709208,0.00013,2]
[327840224,1716541874789,54307.98951292,7.313e-05,2]
[327840225,1716541874820,39113.90299267,7.313e-05,2]
[327840231,1716541953001,2382.52704372,0.00012998,30]
[327840232,1716541972512,1588.35136248,0.00012998,30]
[327840233,1716541990516,1323.6261354,0.00012998,30]
[327840234,1716542008635,1323.6261354,0.00012998,30]
[327840235,1716542034710,689.60921654,0.00012998,30]
[327840236,1716542052521,689.60921654,0.00012998,30]
[327840237,1716542070531,689.60921654,0.00012998,30]
[327840238,1716542090544,689.60921654,0.00012998,30]
[327840239,1716542108542,689.60921654,0.00012998,30]
[327840240,1716542126542,689.60921654,0.00012998,30]
[327840241,1716542150551,689.60921654,0.00012998,30]
[327840242,1716542166666,689.60921654,0.00012998,30]
[327840243,1716542188677,689.60921654,0.00012998,30]
[327840244,1716542208675,411.64772815,0.00012998,30]
[327840245,1716542556074,157.052418,0.0003,30]
[327840254,1716542932958,-10532.81154716,9.558e-05,2]
[327840255,1716542932981,-1790.87747307,9.559e-05,2]
[327840256,1716542933006,-939.10970596,9.56e-05,2]
[327840257,1716542933031,-150.0,9.562e-05,2]
[327840258,1716542933053,-746.78,9.565e-05,2]
[327840259,1716542933077,-210.0,0.00010518,2]
[327840260,1716542933103,-250.0,0.00011286,2]
[327840261,1716542933126,-1318.76,0.0001133,2]
[327840262,1716542933150,-250.0,0.00011391,2]
[327840263,1716542933173,-2318.96,0.00011422,2]
[327840264,1716542933198,-1852.42,0.00011424,2]
[327840265,1716542933224,-600.97,0.00011499,2]
[327840266,1716542933248,-1833.31,0.00011537,2]
[327840267,1716542933271,-2333.98,0.00011537,2]
[327840268,1716542933295,-2692.46,0.00011537,2]
[327840269,1716542933323,-175.18,0.00011537,2]
[327840270,1716542933345,-293.0,0.0001157,2]
[327840271,1716542933369,-158.01,0.00011593,2]
[327840272,1716542933392,-2434.69,0.00011602,2]
[327840273,1716542933414,-23900.0,0.00011602,2]
[327840274,1716542933438,-1000.0,0.00011618,2]
[327840275,1716542933461,-158.01,0.0001164,2]
[327840276,1716542933486,-158.01,0.00011686,2]
[327840277,1716542933510,-750.94633531,0.00011698,2]
[327840278,1716542933533,-158.01,0.00011733,2]
[327840279,1716542933558,-167.66,0.00011735,2]
[327840280,1716542933585,-158.01,0.00011779,2]
[327840281,1716542933610,-158.01,0.00011826,2]
[327840282,1716542933633,-746.78,0.00011829,2]
[327840283,1716542933658,-158.01,0.00011872,2]
[327840284,1716542933683,-158.01,0.00011919,2]
[327840285,1716542933710,-158.01,0.00011965,2]
[327840286,1716542933735,-200.0,0.00011967,2]
[327840287,1716542933759,-2222.25,0.00011967,2]
[327840288,1716542933808,155.0,9.557e-05,2]
[327840290,1716542944709,13711.9649385,0.00011862,2]
[327840342,1716543032235,-797.37400748,0.00011862,2]
[327840343,1716543032247,-819.28,0.00011862,2]
[327840344,1716543032259,-8571.38105402,0.00011862,2]
[327840345,1716543032268,-11970.6737688,0.00011862,2]
[327840346,1716543032279,-18884.79500986,0.00011862,2]
[327840347,1716543032291,-463.05,0.00011862,2]
[327840348,1716543032355,-615.1136967,0.00011862,2]
[327840349,1716543032366,-421.94944597,0.00011862,2]
[327840350,1716543032377,-7552.99627616,0.00011862,2]
[327840351,1716543032389,-467.45691708,0.00011862,2]
[327840352,1716543032477,-6978.27209133,0.00011862,2]
[327840353,1716543032491,-1007.15591784,0.00011862,2]
[327840354,1716543032502,-533.45836334,0.00011862,2]
[327840355,1716543032514,-1363.36847576,0.00011862,2]
[327840356,1716543032528,-4309.03440661,0.00011862,2]
[327840357,1716543032542,-542.70476079,0.00011862,2]
[327840358,1716543032555,-20857.57210208,0.00011862,2]
[327840359,1716543032564,-215.74485786,0.00011862,2]
[327840360,1716543032573,-158.01,0.00012011,2]
[327840361,1716543032583,-158.01,0.00012058,2]
[327840362,1716543032594,-300.0,0.000121,4]
[327840363,1716543032608,-158.01,0.00012104,2]
[327840364,1716543032617,-158.01,0.00012151,2]
[327840365,1716543032626,-155.0,0.00012196,2]
[327840366,1716543032636,-158.01,0.00012197,2]
[327840367,1716543032647,-600.0,0.000122,4]
[327840368,1716543032656,-870.34,0.00012282,2]
[327840369,1716543032666,-870.34,0.00012282,2]
[327840370,1716543032677,-1000.0,0.000123,4]
[327840371,1716543032686,-1300.0,0.000124,4]
[327840372,1716543032696,-1166.81093673,0.000125,4]
[327840373,1716543032708,-436.07784348,0.000125,4]
[327840374,1716543032724,-97.11121979,0.000125,4]
[327840376,1716543032733,-165.44,0.00012533,2]
[327840378,1716543032742,-300.0,0.000126,4]
[327840380,1716543032752,-300.0,0.000127,4]
[327840382,1716543032761,-770.55632994,0.00012782,2]
[327840385,1716543032774,-99.78367006,0.00012782,2]
[327840386,1716543032783,-567.56132363,0.00012782,2]
[327840389,1716543032795,-263.83867637,0.00012782,2]
[327840391,1716543032804,-300.0,0.000128,4]
[327840393,1716543032813,-27.98782463,0.00012868,2]
[327840395,1716543032825,-224.29140852,0.00012868,2]
[327840397,1716543032834,-500.0,0.00012895,2]
[327840399,1716543032845,-500.0,0.00012896,2]
[327840401,1716543032854,-802.88838032,0.00012898,2]
[327840403,1716543032864,-160.0113753,0.00012898,2]
[327840405,1716543032873,-802.88838031,0.00012898,2]
[327840407,1716543032882,-802.88838031,0.00012898,2]
[327840409,1716543032891,-802.88838031,0.00012899,2]
[327840411,1716543032900,-35.48666989,0.00012899,2]
[327840413,1716543032911,-124.52470539,0.00012899,2]
[327840415,1716543032920,-802.88838031,0.00012899,2]
[327840417,1716543032929,-802.88838031,0.00012899,2]
[327840419,1716543032938,-802.88838031,0.00012899,2]
[327840421,1716543032947,-160.01137528,0.00012899,2]
[327840423,1716543032956,-802.88838031,0.000129,2]
[327840425,1716543032965,-802.88838031,0.000129,2]
[327840427,1716543032975,-1584.37288202,0.000129,2]
[327840551,1716543038211,-428.61941707,0.000129,2]
[327840552,1716543038469,-804.88887239,0.000129,2]
[327840553,1716543038480,-527.67328158,0.000129,2]
[327840554,1716543038898,-1599.50354593,0.000129,2]
[327840555,1716543038922,-2296.37557937,0.000129,2]
[327840556,1716543038933,-1220.20775906,0.000129,2]
[327840557,1716543038944,-406.46916604,0.000129,2]
[327840558,1716543038956,-1131.88949654,0.000129,2]
[327840559,1716543038965,-8868.15886666,0.000129,2]
[327840560,1716543038976,-692.79472096,0.000129,2]
[327840561,1716543038988,-4563.40481238,0.000129,2]
[327840562,1716543038997,-176.2348649,0.000129,2]
[327840563,1716543039007,-300.0,0.000129,4]
[327840564,1716543039017,-802.88838031,0.000129,2]
[327840565,1716543039026,-160.01137528,0.000129,2]
[327840566,1716543039036,-7500.0,0.000129,2]
[327840567,1716543039046,-533.52204132,0.000129,2]
[327840568,1716543039055,-3153.0508086,0.00012968,2]
[327840569,1716543039065,-351.9721344,0.00012989,2]
[327840570,1716543039075,-150.66,0.0001299,2]
[327840571,1716543039085,-150.66,0.0001299,2]
[327840572,1716543039095,-150.66,0.0001299,2]
[327840573,1716543039109,-163.18099659,0.0001299,2]
[327840574,1716543039118,-223.37937242,0.00012998,2]
[327840575,1716543039127,-161.73963544,0.00012998,2]
[327840576,1716543039136,-521.20433106,0.00012998,2]
[327840577,1716543039145,-374.80826011,0.00012998,2]
[327840578,1716543039154,-161.08782304,0.00012998,2]
[327840579,1716543039163,-10526.12234144,0.00012998,2]
[327840580,1716543039172,-6953.23257598,0.00012999,2]
[327840581,1716543039181,-707.19968745,0.00012999,2]
[327840582,1716543039190,-10934.72962016,0.00012999,2]
[327840583,1716543039200,-3934.95517611,0.00012999,2]
[327840584,1716543039209,-150.0,0.00012999,2]
[327840585,1716543039219,-152.67259743,0.00012999,2]
[327840586,1716543039228,-7113946.62031098,0.00013,2]
[327840587,1716543039240,-1014236.29810254,0.00013,2]
[327840588,1716543039251,-16934.04267543,0.00013,2]
[327840589,1716543039274,-347.42345697,0.00013,2]
[327840590,1716543039286,-1425.94447234,0.00013,2]
[327840591,1716543041122,-333.6779221,0.000129,2]
[327840592,1716543041132,-116.3220779,0.00013,2]
[327840594,1716543041248,-10688.81959804,0.00013,2]
[327840595,1716543041376,-405.50991921,0.00013,2]
[327840596,1716543041387,-366.51999999,0.00013,2]
[327840597,1716543041399,-22856.10334011,0.00013,2]
[327840598,1716543041410,-451.9375,0.00013,2]
[327840599,1716543042252,-2114.15837043,0.00013,2]
[327840621,1716543043121,-1805.26599995,0.00013,2]
[327840623,1716543043166,-248683.34575059,0.00013,2]
[327840650,1716543043459,-5501.14189452,0.00013,2]
[327840651,1716543043710,-1067.81353758,0.00013,2]
[327840652,1716543043723,-455.24917089,0.00013,2]
[327840653,1716543043736,-4596.74524561,0.00013,2]
[327840655,1716543043748,-3001.00810005,0.00013,2]
[327840657,1716543043760,-9214.47023561,0.00013,2]
[327840659,1716543043772,-6632.61506849,0.00013,2]
[327840871,1716543046176,-155.0,0.000129,2]
[327840873,1716543046188,-804.66047797,0.00012999,2]
[327840888,1716543046316,-195.33952203,0.00012999,2]
[327840890,1716543046328,-483.34554576,0.00013,2]
[327840905,1716543046458,-694.56952203,0.00013,2]
[327840907,1716543046472,-255.637,0.00013,2]
[327840910,1716543046491,-1499.90008,0.00013,2]
[327841098,1716543918053,3339.03599564,0.0003,30]
[327841123,1716544232534,-1790.87747307,0.00010374,2]
[327841124,1716544232544,-684.84,0.00010375,2]
[327841125,1716544232554,-592.38,0.00010959,2]
[327841126,1716544232563,-14299.8451,0.00011662,2]
[327841127,1716544232572,-251.37928582,0.00011698,2]
[327841128,1716544232581,-1298.78853938,0.00011761,2]
[327841129,1716544232591,-1000.0,0.00012373,2]
[327841130,1716544232601,-684.84,0.00012639,2]
[327841131,1716544232610,-153.78870709,0.00012869,2]
[327841132,1716544232620,-1000.0,0.00012896,2]
[327841134,1716544232631,-200.0,0.00012896,2]
[327841136,1716544232640,-500.0,0.00012896,2]
[327841137,1716544232650,-150.99,0.00012896,2]
[327841139,1716544232659,-150.99,0.00012896,2]
[327841140,1716544232669,-881.9208,0.00012899,2]
[327841141,1716544232678,-2462.17573125,0.00012899,2]
[327841142,1716544232689,-1238.6425281,0.00012899,2]
[327841143,1716544232699,-499.99,0.00012899,2]
[327841144,1716544232708,-150.34173523,0.00012899,2]
[327841145,1716544232717,-150.34173522,0.00012899,2]
[327841146,1716544232727,-150.34173522,0.000129,2]
[327841147,1716544232736,-248.1438063,0.000129,2]
[327841148,1716544232745,-563.3352745,0.000129,2]
[327841154,1716544233077,-438.97877864,0.000129,2]
[327841184,1716544233362,-1647.10744656,0.000129,2]
[327841188,1716544233391,-7420.92890909,0.000129,2]
[327841190,1716544233402,-3153.62029121,0.000129,2]
[327841192,1716544233412,-6775.2622,0.000129,2]
[327841194,1716544233421,-2932.32737596,0.000129,2]
[327841196,1716544233431,-150.34173522,0.000129,2]
[327841198,1716544233440,-2861.71105162,0.000129,2]
[327841200,1716544233450,-800.0,0.00012986,2]
[327841202,1716544233460,-473.82718816,0.00012989,2]
[327841204,1716544233469,-650.9817869,0.00012989,2]
[327841206,1716544233478,-703.9442689,0.00012989,2]
[327841208,1716544233488,-627.5251183,0.00012991,2]
[327841210,1716544233497,-604.0684498,0.00012991,2]
[327841212,1716544233506,-580.6117812,0.00012991,2]
[327841214,1716544233516,-557.1551126,0.00012991,2]
[327841216,1716544233525,-533.698444,0.00012991,2]
[327841218,1716544233534,-1555.42520613,0.00012998,2]
[327841262,1716544238673,-15230.10932913,0.00012998,2]
[327841263,1716544238684,-1917.73287074,0.00012998,2]
[327841264,1716544238696,-1509.21280467,0.00012998,2]
[327841265,1716544238705,-237.41199557,0.00012998,2]
[327841266,1716544238714,-1954.99411695,0.00012998,2]
[327841267,1716544238725,-408.52002494,0.00012998,2]
[327841268,1716544238734,-1245.65494893,0.00012998,2]
[327841269,1716544238743,-75465.31374987,0.00012999,2]
[327841270,1716544238752,-9888.79300894,0.00012999,2]
[327841271,1716544238761,-24755.22,0.00012999,2]
[327841272,1716544238770,-303.8301244,0.00012999,2]
[327841273,1716544238779,-3934.95517611,0.00012999,2]
[327841274,1716544238788,-150.0,0.00012999,2]
[327841275,1716544238798,-152.67259743,0.00012999,2]
[327841276,1716544238807,-7001879.2884539,0.00013,2]
[327841277,1716544238818,-1014236.29810254,0.00013,2]
[327841279,1716544238829,-710.733,0.00013,2]
[327841308,1716544243850,-248683.34575059,0.00013,2]
[327841309,1716544243862,-441.83664,0.00013,2]
[327841310,1716544243874,-6696.08252445,0.00013,2]
[327841311,1716544243886,-880.21195323,0.00013,2]
[327841313,1716544244327,-549.34500002,0.00013,2]
[327841339,1716544246815,-460.66492026,0.00013,2]
[327841355,1716544763865,574.87932829,0.00012998,7]
[327841356,1716544789747,200.0,0.00016438,7]
[327841357,1716544818060,438.71877095,0.00025,30]
[327841358,1716544824002,809050.622103,0.0003,30]
[327841360,1716545113112,-155.0,9.384e-05,2]
[327841361,1716545113137,-166.01147204,9.385e-05,2]
[327841362,1716545113163,-10532.81154716,9.385e-05,2]
[327841363,1716545113188,-3286.97999917,9.385e-05,2]
[327841364,1716545113213,-162.76290291,9.386e-05,2]
[327841365,1716545113238,-2396.43407872,9.386e-05,2]
[327841366,1716545138021,-2223.86794373,9.386e-05,2]
[327841367,1716545138046,-4176.13205627,9.386e-05,2]
[327841368,1716545156798,-516.62800356,9.385e-05,2]
[327841369,1716545156826,-55583.37199644,9.386e-05,2]
[327841372,1716545167011,154.7,0.00027068,30]
[327841373,1716545179526,2549.05213827,7.04e-05,2]
[327841451,1716545247992,2549.05213827,5.28e-05,2]
[327841456,1716545251529,346.57302212,7.04e-05,2]
[327841458,1716545263935,2549.05213827,5.28e-05,2]
[327841459,1716545269520,315.76440952,7.04e-05,2]
[327841460,1716545281945,1759.33133737,5.28e-05,2]
[327841461,1716545344142,261.23205342,0.00015,7]
[327841462,1716545353323,10000.0,0.0003,30]
[327841478,1716545431722,-884.9,8.638e-05,2]
[327841481,1716545431732,-155.79,9.397e-05,2]
[327841482,1716545431741,-190.29439635,0.0001,2]
[327841484,1716545431750,-790.26530989,0.00010522,2]
[327841486,1716545431760,-250.0,0.00010523,2]
[327841488,1716545431769,-200.0,0.00010523,2]
[327841490,1716545431778,-191.34,0.0001053,2]
[327841492,1716545431787,-150.0,0.00010532,2]
[327841493,1716545431796,-1237.62589975,0.00010533,2]
[327841494,1716545431808,-133.75410025,0.00010533,2]
[327841495,1716545431817,-2682.09682514,0.00010533,2]
[327841496,1716545431829,-657.25,0.00010533,2]
[327841497,1716545432080,-1910.03129286,0.00010533,2]
[327841498,1716545432092,-684.71908266,0.00010533,2]
[327841499,1716545432103,-773.54279934,0.00010533,2]
[327841500,1716545432112,-3250.37,0.00010533,2]
[327841501,1716545432122,-163.46,0.00010545,2]
[327841502,1716545432131,-1012.38,0.00010545,2]
[327841503,1716545432140,-168.43,0.00010554,2]
[327841504,1716545432150,-7152.98,0.00010554,2]
[327841505,1716545432161,-9310.21505159,0.00010554,2]
[327841506,1716545432172,-299.66504719,0.00010554,2]
[327841507,1716545432184,-4987.50990122,0.00010554,2]
[327841508,1716545432194,-994.48,0.00010554,2]
[327841509,1716545432204,-3539.99,0.0001056,2]
[327841510,1716545432213,-39.00848333,0.0001056,2]
[327841512,1716545432225,-111.98151667,0.0001056,2]
[327841515,1716545432245,-157.01848383,0.00010574,2]
[327841520,1716545432308,-6389.98151617,0.00010574,2]
[327841521,1716545432319,-250.0,0.00010578,2]
[327841522,1716545432328,-220.61,0.00010816,2]
[327841523,1716545432338,-220.61,0.00010846,2]
[327841524,1716545432348,-220.61,0.00010875,2]
[327841525,1716545432358,-884.9,0.00010902,2]
[327841526,1716545432368,-220.61,0.00010905,2]
[327841527,1716545432382,-207.48,0.00010932,2]
[327841528,1716545432392,-220.61,0.00010935,2]
[327841529,1716545432404,-1164.86048383,0.00010959,2]
[327841530,1716545432416,-484.27951617,0.00010959,2]
[327841531,1716545432427,-220.61,0.00010964,2]
[327841532,1716545432437,-220.61,0.00010994,2]
[327841533,1716545432447,-220.61,0.00011024,2]
[327841534,1716545432458,-220.61,0.00011053,2]
[327841535,1716545432467,-220.61,0.00011083,2]
[327841536,1716545432477,-220.61,0.00011113,2]
[327841537,1716545432486,-220.61,0.00011142,2]
[327841538,1716545432496,-220.61,0.00011172,2]
[327841539,1716545432505,-220.61,0.00011202,2]
[327841540,1716545432514,-220.61,0.00011231,2]
[327841541,1716545432524,-498.00632762,0.00011231,2]
[327841542,1716545432536,-833.36001832,0.00011231,2]
[327841543,1716545432548,-537.12016184,0.00011231,2]
[327841544,1716545432559,-308.807424,0.00011231,2]
[327841545,1716545438114,-22577.92606822,0.00011231,2]
[327841548,1716545438124,-220.61,0.00011261,2]
[327841551,1716545438133,-220.61,0.00011291,2]